bitfinex/quotes_ETHUSD_20240717
["timestamp","ask_amount","ask_price","bid_price","bid_amount"]
[1721204962864,2.86066,3495.7,3494.5,10.38]
[1721204962865,2.86082,3495.5,3494.8,2.86137]
[1721204963071,2.86082,3495.5,3494.9,0.55]
[1721204963969,2.86082,3495.5,3494.9,3.4113]
[1721204964768,0.6007224,3495.7,3494.6,4.0]
[1721204964980,2.86108,3495.2,3494.6,4.0]
[1721204965274,2.86131,3494.9,3494.6,4.04691234]
[1721204965950,2.86131,3494.9,3494.6,0.04691234]
[1721204966163,2.86131,3494.9,3494.3,4.0]
[1721204966477,2.86131,3494.9,3494.6,0.04691234]
[1721204966678,2.86131,3494.9,3494.3,2.86178]
[1721204966838,2.86131,3494.9,3494.6,0.04691234]
[1721204967034,2.8612,3495.1,3494.3,2.86178]
[1721204967339,2.86109,3495.2,3494.4,0.55]
[1721204967340,2.86123,3495.0,3494.4,0.55]
[1721204967547,2.86132,3494.9,3494.5,0.04703191]
[1721204967975,2.86132,3494.9,3494.6,0.04691234]
[1721204968182,2.86132,3494.9,3494.3,2.86177]
[1721204968494,2.86132,3494.9,3494.6,0.04691234]
[1721204968631,2.86123,3495.0,3494.3,2.86177]
[1721204968831,2.86132,3494.9,3494.6,0.04691234]
[1721204969089,2.86132,3494.9,3494.1,2.86195]
[1721204969232,2.86132,3494.9,3494.6,0.04691234]
[1721204969434,2.86146,3494.8,3494.1,2.86195]
[1721204969677,2.86146,3494.8,3494.6,0.04691234]
[1721204969851,2.86148,3494.7,3494.0,2.86204]
[1721204970170,2.86148,3494.7,3494.1,0.55]
[1721204970384,2.86148,3494.7,3494.1,0.04751023]
[1721204970943,2.86148,3494.7,3494.1,2.90947023]
[1721204971591,2.86148,3494.7,3494.1,0.04751023]
[1721204971879,2.86148,3494.7,3494.1,2.90946023]
[1721204972762,2.86148,3494.7,3494.1,0.04751023]
[1721204973207,2.86148,3494.7,3494.1,2.90946023]
[1721204973708,5.26731,3494.9,3494.1,2.90946023]
[1721204973997,2.8614,3494.8,3494.1,2.90946023]
[1721204974789,2.86118,3495.1,3494.1,2.90946023]
[1721204974988,2.86118,3495.1,3494.3,2.86175]
[1721204975174,2.86118,3495.1,3494.4,2.86171]
[1721204975175,2.86121,3495.1,3494.4,2.86171]
[1721204975374,2.86102,3495.3,3494.4,2.90891516]
[1721204975603,5.86111,3495.2,3494.4,2.90891516]
[1721204975806,2.86102,3495.3,3494.5,2.86158]
[1721204976014,2.86084,3495.5,3494.7,2.86141]
[1721204976216,2.86084,3495.5,3494.8,2.86136]
[1721204976417,3.4614124,3495.7,3494.7,2.86141]
[1721204976418,2.86074,3495.6,3494.9,2.86131]
[1721204976714,3.62099059,3495.6,3494.9,2.8613]
[1721204977061,0.76025059,3495.6,3494.9,2.8613]
[1721204977379,2.3681,3496.5,3495.4,2.86089]
[1721204977708,5.22812,3496.5,3495.5,2.86079]
[1721204977909,5.22812,3496.5,3495.4,2.86089]
[1721204977910,2.86023,3496.3,3495.6,2.86072]
[1721204978112,5.22812,3496.5,3495.6,2.86072]
[1721204978769,2.3681,3496.5,3495.8,2.86052]
[1721204978966,2.890894,3496.5,3495.8,2.86052]
[1721204979167,5.750944,3496.5,3495.6,2.86067]
[1721204979374,2.86009,3496.4,3495.4,2.86086]
[1721204979573,2.86009,3496.4,3495.5,0.55]
[1721204979811,2.86009,3496.4,3495.7,2.86064]
[1721204980032,0.8611034,3496.3,3495.7,2.86064]
[1721204980795,2.86025,3496.2,3495.5,2.86081]
[1721204981139,2.86025,3496.2,3495.4,2.86089]
[1721204981518,2.86033,3496.1,3495.4,2.86089]
[1721204981894,3.7213334,3496.3,3495.0,2.86118]
[1721204981895,2.86058,3495.8,3495.0,2.86118]
[1721204982134,2.86058,3495.8,3495.2,4.0]
[1721204982338,2.86058,3495.8,3495.1,2.86109]
[1721204982494,2.86058,3495.8,3494.9,2.86124]
[1721204982495,2.86067,3495.7,3494.9,2.86124]
[1721204982916,2.86067,3495.7,3495.0,2.86122]
[1721204983129,2.86067,3495.7,3495.0,6.86122]
[1721204983332,2.86074,3495.6,3495.0,4.0]
[1721204983491,5.7921814,3495.6,3494.9,2.86131]
[1721204984325,5.7921814,3495.6,3495.0,2.86122]
[1721204985569,2.86058,3495.8,3495.1,2.86114]
[1721204985734,2.86044,3496.0,3495.1,2.86114]
[1721204985932,2.86062,3495.8,3495.1,2.86114]
[1721204986639,2.86044,3496.0,3495.3,2.86093]
[1721204987773,2.4662,3496.1,3494.5,2.8616]
[1721204987986,2.86107,3495.2,3494.4,3.15865125]
[1721204988148,2.86107,3495.2,3494.6,0.04686959]
[1721204988335,2.86107,3495.2,3494.4,3.15865125]
[1721204988535,2.86136,3494.9,3494.4,0.29694125]
[1721204988841,2.86136,3494.9,3494.5,4.04698916]
[1721204989462,2.86136,3494.9,3494.5,0.04698916]
[1721204990977,2.86116,3495.1,3494.5,2.90861916]
[1721204991192,2.86116,3495.1,3494.5,0.04698916]
[1721204991571,2.4662,3495.3,3494.5,0.04698916]
[1721204991742,2.4662,3495.3,3494.5,2.90860916]
[1721204992082,2.4662,3495.3,3494.6,2.86153]
[1721204992435,0.89740475,3495.6,3494.7,0.55]
[1721204992640,0.89740475,3495.9,3494.7,0.55]
[1721204992879,0.89740475,3496.0,3495.3,2.86096]
[1721204993040,1.02747967,3496.0,3495.4,2.86084]
[1721204993238,1.92488442,3496.0,3495.4,2.86084]
[1721204993495,1.02747967,3496.0,3495.4,2.86084]
[1721204993984,0.89740475,3496.1,3495.5,2.86079]
[1721204994162,0.89740475,3496.3,3495.5,2.86079]
[1721204994368,3.75749475,3496.4,3495.5,2.86079]
[1721204994679,1.19653967,3496.5,3494.8,1.7]
[1721204994680,0.89740475,3496.3,3495.8,2.86051]
[1721204994851,0.89740475,3496.5,3495.8,2.86051]
[1721204995058,1.92107119,3496.5,3495.8,2.86051]
[1721204995277,0.89740475,3496.7,3496.2,2.86021]
[1721204995754,0.89740475,3496.8,3496.2,2.86021]
[1721204996101,2.86,3496.5,3495.8,2.86057]
[1721204996252,3.75740475,3496.5,3495.8,2.86057]
[1721204996455,6.07568475,3496.4,3495.6,2.86067]
[1721204996648,1.91062019,3496.3,3495.0,4.0]
[1721204996884,0.89740475,3496.0,3495.2,2.86105]
[1721204997056,0.89740475,3496.1,3495.3,6.86097]
[1721204997266,0.89740475,3495.9,3495.3,6.86097]
[1721204997676,0.89740475,3495.9,3495.3,2.86097]
[1721204997886,0.62856747,3495.9,3495.3,2.86097]
[1721204998185,0.89740475,3496.0,3495.5,2.8608]
[1721204998389,0.89740475,3496.0,3495.4,2.86089]
[1721204998595,0.89740475,3496.0,3495.0,2.86116]
[1721204998755,2.86064,3495.8,3495.1,2.86108]
[1721204999062,0.89740475,3495.9,3495.2,2.86103]
[1721204999267,0.89740475,3495.8,3495.2,2.86103]
[1721204999651,0.89740475,3495.8,3495.1,2.86109]
[1721204999652,3.75803475,3495.8,3495.1,2.86109]
[1721204999855,0.89740475,3495.8,3495.3,2.86091]
[1721205000070,1.82854278,3495.9,3495.1,2.86111]
[1721205000308,1.82854278,3495.9,3495.3,2.86092]
[1721205000473,0.58854425,3495.8,3495.1,2.86111]
[1721205000872,2.4439,3495.6,3494.9,2.8613]
[1721205001076,3.34130475,3495.6,3495.0,2.86122]
[1721205001393,3.34130475,3495.6,3494.9,2.8613]
[1721205001394,2.4439,3495.6,3494.8,0.29680308]
[1721205001611,2.4439,3495.6,3495.3,2.86092]
[1721205001960,2.4439,3495.6,3495.2,2.86106]
[1721205002165,0.33413047,3495.5,3494.8,0.29680308]
[1721205002483,2.86106,3495.2,3494.8,0.29680308]
[1721205002673,2.86106,3495.2,3494.1,2.86193]
[1721205002674,2.8613,3495.0,3494.1,2.86193]
[1721205002868,2.86133,3494.9,3494.2,4.0]
[1721205003073,2.86143,3494.8,3494.2,4.0]
[1721205003374,2.86123,3495.0,3494.2,6.86181]
[1721205003593,3.75863475,3495.0,3494.3,0.29705746]
[1721205003805,2.86132,3494.9,3494.3,0.29705746]
[1721205003999,5.94435548,3494.8,3494.3,0.29705746]
[1721205004174,2.86156,3494.6,3493.9,2.86207]
[1721205004387,2.86156,3494.6,3494.0,4.0]
[1721205004576,2.86156,3494.6,3493.9,2.86207]
[1721205004775,2.86175,3494.4,3493.6,2.86234]
[1721205005008,2.86175,3494.4,3493.5,5.86244]
[1721205005009,2.86175,3494.4,3493.7,2.86228]
[1721205005207,3.75896475,3494.6,3493.7,2.86228]
[1721205005208,3.75896475,3494.6,3493.9,2.86211]
[1721205005408,2.86156,3494.6,3493.9,2.86211]
[1721205005585,6.84172023,3494.8,3493.9,2.86211]
[1721205005586,2.86147,3494.7,3493.9,2.86211]
[1721205005771,0.89740475,3494.7,3494.0,2.86201]
[1721205005981,3.31830475,3494.8,3494.3,2.86174]
[1721205006183,2.4209,3494.8,3494.3,2.86174]
[1721205006405,0.89740475,3495.1,3494.5,2.86157]
[1721205007075,0.89740475,3495.1,3494.3,5.72348]
[1721205007276,2.21481819,3495.1,3494.3,2.86174]
[1721205007515,5.07602819,3495.1,3494.4,2.8617]
[1721205008116,5.07602819,3495.1,3495.0,2.86123]
[1721205008117,0.89740475,3495.1,3495.0,2.86123]
[1721205008317,0.89740475,3495.6,3495.0,2.86123]
[1721205008876,0.89740475,3495.6,3495.1,2.86113]
[1721205009176,3.75806475,3495.7,3495.1,2.86113]
[1721205009518,3.75806475,3495.7,3495.0,2.86123]
[1721205009519,0.89740475,3495.6,3495.0,2.86123]
[1721205009817,0.89740475,3495.6,3494.8,2.86133]
[1721205009818,0.89740475,3495.4,3494.8,2.86133]
[1721205010239,0.89740475,3495.4,3494.6,2.86153]
[1721205010542,0.89740475,3495.4,3494.8,2.86138]
[1721205010840,0.89740475,3496.1,3495.7,2.8606]
[1721205011014,0.33477533,3496.0,3495.8,2.86057]
[1721205011210,0.89740475,3496.3,3495.8,2.86057]
[1721205011645,0.89740475,3496.5,3495.8,2.86057]
[1721205011844,0.89740475,3496.4,3495.9,2.86047]
[1721205012142,3.24620475,3496.6,3495.9,2.86047]
[1721205012346,1.62766219,3496.5,3495.9,2.86047]
[1721205012532,1.62766219,3496.5,3496.0,2.8604]
[1721205012921,1.62766219,3496.5,3495.3,2.86095]
[1721205013101,1.19653967,3496.7,3496.1,2.86026]
[1721205013102,0.89740475,3496.7,3496.1,2.86026]
[1721205013597,0.89740475,3496.6,3496.1,2.86026]
[1721205013803,0.89740475,3496.7,3496.2,2.86024]
[1721205014401,3.89740475,3496.7,3495.9,2.86046]
[1721205014602,3.89740475,3496.7,3495.7,2.86062]
[1721205014603,0.79537044,3496.6,3495.7,2.86062]
[1721205014837,3.75745475,3496.5,3495.7,2.86062]
[1721205015065,0.89740475,3496.4,3495.7,2.86062]
[1721205015269,3.75745475,3496.5,3495.8,2.86056]
[1721205015479,2.86008,3496.4,3495.5,5.72155]
[1721205015646,0.89740475,3496.3,3495.7,2.86058]
[1721205015847,4.61840824,3496.4,3495.8,2.86051]
[1721205016284,2.3143,3496.3,3495.2,4.0]
[1721205016471,2.86038,3496.1,3495.4,2.86086]
[1721205016671,0.89740475,3496.2,3495.4,2.86086]
[1721205016672,3.75766475,3496.2,3495.4,2.86086]
[1721205016871,2.86026,3496.2,3495.4,2.86086]
[1721205017170,2.86034,3496.1,3495.4,2.86086]
[1721205017961,4.73696557,3496.2,3495.5,2.86081]
[1721205018148,3.21170475,3496.3,3495.6,2.86072]
[1721205018349,2.3143,3496.3,3495.8,2.86055]
[1721205018570,3.21170475,3496.3,3495.8,2.86055]
[1721205018974,5.15103756,3496.6,3495.1,2.8611]
[1721205018975,1.69277519,3496.6,3496.0,2.86036]
[1721205019177,1.69277519,3496.6,3496.1,2.86026]
[1721205019350,0.89740475,3496.6,3496.1,2.86026]
[1721205020151,0.89740475,3496.6,3496.2,2.86023]
[1721205020387,2.2675,3496.8,3496.2,2.86023]
[1721205020388,3.16490475,3496.8,3496.4,2.86007]
[1721205020555,2.2675,3496.8,3496.4,2.86007]
[1721205021171,0.89740475,3496.9,3496.5,2.85997]
[1721205021489,0.89740475,3496.9,3496.4,2.86007]
[1721205021490,0.89740475,3497.0,3496.9,2.85967]
[1721205021693,1.40342527,3497.2,3496.9,2.85967]
[1721205021870,0.2068856,3497.2,3497.1,2.85951]
[1721205022278,0.2068856,3497.2,3497.1,5.71902]
[1721205023203,0.2068856,3497.2,3497.1,2.85951]
[1721205023702,0.2068856,3497.2,3497.1,5.71902]
[1721205024172,0.2068856,3497.2,3497.1,11.59853]
[1721205024502,0.2068856,3497.2,3497.1,14.43693]
[1721205025063,0.2068856,3497.2,3497.1,18.43693]
[1721205025260,0.89740475,3498.8,3498.0,5.71751]
[1721205025464,2.3535,3499.3,3498.8,2.85807]
[1721205025699,2.3535,3499.3,3498.4,2.85843]
[1721205025700,0.44474444,3499.2,3498.4,2.85843]
[1721205025870,3.30253444,3499.2,3498.5,2.85834]
[1721205026072,2.8581,3498.9,3498.1,2.85864]
[1721205026407,2.85813,3498.8,3498.1,2.85864]
[1721205026582,2.85814,3498.8,3498.1,2.85864]
[1721205026968,2.85798,3499.0,3497.5,3.02]
[1721205027164,2.85798,3499.0,3498.3,2.85852]
[1721205027387,3.30255444,3499.2,3498.4,2.85837]
[1721205027589,2.3535,3499.3,3498.1,3.02]
[1721205027787,2.3535,3499.3,3498.8,2.85811]
[1721205028009,2.85749,3499.6,3498.9,2.85804]
[1721205028165,3.94545554,3499.7,3498.9,2.85804]
[1721205028363,3.94545554,3499.7,3499.0,0.05715704]
[1721205028584,3.94545554,3499.7,3499.2,2.85777]
[1721205028825,1.49075554,3499.7,3499.2,2.85777]
[1721205028997,1.49075554,3499.7,3499.3,2.85764]
[1721205029591,1.49075554,3499.7,3499.5,2.85755]
[1721205030098,1.49075554,3499.7,3498.7,2.85819]
[1721205030099,1.49075554,3499.7,3499.3,2.85771]
[1721205030302,1.49075554,3499.7,3498.5,1.7]
[1721205030303,1.63983109,3499.7,3498.8,2.85807]
[1721205030482,1.63983109,3499.7,3498.1,3.0]
[1721205030683,2.4895,3499.6,3498.3,4.0]
[1721205030886,2.85788,3499.1,3498.3,4.0]
[1721205031085,0.285788,3499.0,3498.3,4.0]
[1721205031312,2.85778,3499.3,3498.2,2.8586]
[1721205031473,2.4895,3499.6,3498.2,2.8586]
[1721205031474,2.4895,3499.6,3498.2,3.02]
[1721205031812,4.49075554,3499.7,3499.2,2.85777]
[1721205031974,1.49075554,3499.7,3499.2,2.85777]
[1721205032481,1.49075554,3499.7,3498.6,3.02]
[1721205032482,1.49075554,3499.7,3499.5,2.85751]
[1721205032700,1.49075554,3499.7,3499.6,2.85746]
[1721205034802,1.49075554,3499.7,3499.6,5.71492]
[1721205035147,1.49075554,3499.7,3499.6,8.73492]
[1721205036126,1.49075554,3499.7,3499.6,17.44984]
[1721205036325,1.49075554,3499.7,3499.6,18.59238]
[1721205037143,0.150675,3500.4,3499.7,2.85736]
[1721205037368,0.150675,3500.4,3500.3,2.85689]
[1721205037518,0.150675,3500.4,3500.3,7.4020269]
[1721205037715,0.150675,3500.4,3500.3,10.2589169]
[1721205038018,0.150675,3500.4,3500.3,10.8089169]
[1721205038217,5e-06,3500.4,3500.3,19.6858069]
[1721205038414,5e-06,3500.4,3500.3,23.6858069]
[1721205038633,5e-06,3500.4,3500.3,20.8289169]
[1721205040226,5e-06,3500.4,3500.3,23.6858069]
[1721205040651,5e-06,3500.4,3500.3,20.8289169]
[1721205041476,5e-06,3500.4,3500.3,23.6858069]
[1721205042028,2.85518,3502.4,3501.5,2.85588]
[1721205042258,0.86329876,3502.3,3501.5,2.85588]
[1721205042578,2.85559,3501.9,3501.1,2.85624]
[1721205042886,2.85565,3501.9,3501.1,2.85624]
[1721205043029,2.85543,3502.1,3500.4,1.7]
[1721205043030,2.85601,3501.4,3500.4,2.85679]
[1721205043232,2.85601,3501.4,3500.6,4.0]
[1721205043233,2.8561,3501.3,3500.6,4.0]
[1721205043565,0.571211,3501.3,3500.6,4.0]
[1721205043888,2.85635,3501.0,3499.4,2.85762]
[1721205044259,2.4094,3501.2,3499.3,2.85771]
[1721205044464,2.4094,3501.2,3499.4,2.85763]
[1721205044465,2.85651,3500.8,3499.4,2.85763]
[1721205044680,2.85682,3500.4,3499.4,2.85763]
[1721205044900,2.85688,3500.4,3499.6,2.85746]
[1721205045368,2.85691,3500.3,3499.3,2.85763]
[1721205045523,2.85713,3500.1,3499.3,2.8577]
[1721205045724,2.85713,3500.1,3499.0,3.02]
[1721205045725,2.456,3500.2,3499.4,2.85761]
[1721205045931,2.3176,3501.3,3500.5,2.85665]
[1721205046172,2.3176,3501.3,3499.9,5.87721]
[1721205046173,2.3176,3501.3,3500.3,2.85688]
[1721205046353,5.85551,3502.0,3500.7,4.55654]
[1721205046354,5.17329,3501.8,3500.7,4.55654]
[1721205046539,5.17329,3501.8,3501.0,2.8563]
[1721205046728,5.17329,3501.8,3500.9,2.8564]
[1721205046729,2.3176,3501.8,3500.9,2.8564]
[1721205046929,2.85538,3502.2,3501.4,2.85598]
[1721205047130,3.74451988,3502.2,3501.4,2.85598]
[1721205047330,3.74451988,3502.2,3500.4,2.85676]
[1721205047331,3.74448988,3502.2,3501.5,2.8559]
[1721205047530,3.74448988,3502.2,3500.7,1.7]
[1721205047762,2.85559,3501.9,3501.0,2.85627]
[1721205047963,2.85559,3501.9,3501.1,2.85623]
[1721205048183,0.88913988,3502.2,3501.4,2.85598]
[1721205048548,0.88913988,3502.2,3501.5,2.85591]
[1721205049163,2.85527,3502.3,3501.5,2.85591]
[1721205049680,2.85536,3502.2,3501.5,2.85591]
[1721205050232,5.17279,3502.4,3501.5,2.85591]
[1721205050233,8.02803,3502.4,3501.5,2.85591]
[1721205050532,2.85443,3503.4,3500.8,2.85644]
[1721205050533,2.85485,3502.8,3502.0,2.85551]
[1721205050732,5.2671,3503.5,3502.4,2.85518]
[1721205050998,5.2671,3503.5,3502.5,0.05709408]
[1721205050999,2.85437,3503.4,3502.5,0.05709408]
[1721205051283,2.4128,3503.5,3502.6,2.85495]
[1721205051487,2.4128,3503.5,3502.7,2.8549]
[1721205052076,2.85452,3503.3,3502.3,2.85522]
[1721205052276,2.85452,3503.3,3501.6,2.85577]
[1721205052277,2.85495,3502.7,3501.9,2.85556]
[1721205052447,0.290952,3503.1,3502.0,2.85549]
[1721205052448,2.85477,3502.9,3502.0,2.85549]
[1721205052647,0.290952,3503.1,3501.1,1.7]
[1721205052958,2.85513,3502.5,3501.7,2.85574]
[1721205053170,0.005,3503.1,3502.0,2.8555]
[1721205053462,2.85469,3503.0,3502.3,2.85524]
[1721205053666,0.005,3503.1,3502.3,2.85524]
[1721205053891,0.290947,3503.1,3502.3,2.85524]
[1721205054069,2.85492,3502.8,3502.0,2.85548]
[1721205054271,2.85484,3502.9,3502.1,2.8554]
[1721205054573,2.85961,3503.1,3502.3,2.85524]
[1721205054771,2.85469,3503.0,3502.3,2.85524]
[1721205054960,2.85469,3503.0,3502.3,2.85526]
[1721205055156,2.85962,3503.1,3502.3,2.85526]
[1721205055472,2.8547,3503.0,3502.3,2.85526]
[1721205055689,2.85479,3502.9,3502.1,2.85542]
[1721205055984,2.85479,3502.9,3502.2,2.85533]
[1721205056193,2.8547,3503.0,3502.3,2.85526]
[1721205056373,3.32223891,3503.1,3502.3,2.85526]
[1721205056860,2.8547,3503.0,3502.3,2.85526]
[1721205057757,3.32223891,3503.1,3502.3,2.85526]
[1721205058280,3.32223891,3503.1,3502.6,2.85497]
[1721205058281,0.005,3503.1,3502.6,2.85497]
[1721205058864,0.005,3503.1,3502.7,2.85493]
[1721205059272,0.005,3503.1,3503.0,2.85469]
[1721205060104,0.005,3503.1,3502.0,2.85547]
[1721205060272,0.005,3503.1,3502.4,2.85516]
[1721205060479,2.85478,3502.9,3501.7,2.85568]
[1721205060710,2.85499,3502.7,3501.9,2.85559]
[1721205060883,2.85518,3502.4,3501.5,2.85589]
[1721205061217,5.17108,3502.1,3500.6,5.20581]
[1721205061376,2.85535,3502.2,3500.6,5.20581]
[1721205061377,2.85555,3502.0,3501.0,2.85632]
[1721205061570,3.375768,3502.8,3501.8,3.02]
[1721205061571,0.520838,3502.8,3501.8,3.02]
[1721205061879,0.520838,3502.8,3500.8,2.85646]
[1721205061880,0.3520838,3502.7,3500.8,2.85646]
[1721205062098,5.1864,3502.1,3500.9,2.8564]
[1721205062305,2.85551,3502.0,3500.9,2.8564]
[1721205062476,2.85551,3502.0,3501.1,2.85616]
[1721205062677,2.3309,3502.1,3501.5,2.85589]
[1721205062920,2.85478,3502.9,3501.6,3.02]
[1721205063221,3.968909,3502.9,3501.9,2.85553]
[1721205063375,2.85527,3502.3,3501.4,2.85598]
[1721205063570,2.85527,3502.3,3501.0,4.7]
[1721205063571,2.85527,3502.3,3501.3,2.85607]
[1721205063894,2.85535,3502.2,3501.4,2.85599]
[1721205064220,2.85521,3502.4,3501.5,2.8559]
[1721205064516,2.85527,3502.3,3501.5,2.8559]
[1721205064893,2.85495,3502.7,3501.3,3.02]
[1721205065226,1.114129,3502.9,3501.8,2.85567]
[1721205065227,2.8551,3502.5,3501.8,2.85567]
[1721205065921,2.85495,3502.7,3502.0,2.85549]
[1721205066218,2.85492,3502.8,3502.0,2.85549]
[1721205066416,1.114129,3502.9,3501.6,3.02]
[1721205066417,3.968979,3502.9,3502.1,2.85541]
[1721205066649,0.005,3503.1,3502.6,2.85496]
[1721205066807,0.005,3503.1,3501.9,2.85551]
[1721205066808,2.85472,3503.0,3502.0,2.85545]
[1721205067138,2.85472,3503.0,3501.9,2.85555]
[1721205067139,2.85483,3502.9,3501.9,2.85555]
[1721205067362,0.285972,3503.0,3501.8,1.7]
[1721205067504,0.005,3503.1,3502.1,2.85535]
[1721205067700,0.005,3503.1,3502.6,2.855]
[1721205067900,0.005,3503.1,3501.5,3.205]
[1721205067901,0.005,3503.1,3502.0,2.85549]
[1721205068246,2.85469,3503.0,3501.9,2.85554]
[1721205068404,0.290953,3503.1,3501.6,2.85578]
[1721205068405,2.85502,3502.6,3501.6,2.85578]
[1721205068609,2.85502,3502.6,3501.5,2.85584]
[1721205068824,2.85517,3502.5,3501.5,2.85591]
[1721205069005,2.85519,3502.4,3501.5,2.85591]
[1721205069207,2.85519,3502.4,3501.7,2.85574]
[1721205069741,2.85527,3502.3,3501.2,2.85614]
[1721205069901,2.85527,3502.3,3501.5,2.85591]
[1721205070830,2.85535,3502.2,3501.3,2.85607]
[1721205071028,2.85535,3502.2,3501.2,2.85616]
[1721205071029,2.4935,3502.0,3501.2,2.85616]
[1721205071359,5.34902,3502.0,3501.3,2.85606]
[1721205071653,2.4935,3502.0,3501.2,2.8561]
[1721205071813,2.85585,3501.6,3501.0,0.29608792]
[1721205072229,2.85576,3501.7,3501.0,0.29608792]
[1721205073242,2.85583,3501.6,3501.0,0.29608792]
[1721205073718,2.85594,3501.5,3501.0,0.29608792]
[1721205075034,2.856,3501.4,3501.0,0.29608792]
[1721205076074,2.85564,3501.9,3501.0,0.29608792]
[1721205076235,3.0,3502.5,3501.3,2.85608]
[1721205076236,2.85527,3502.3,3501.3,2.85608]
[1721205076580,2.4097,3502.5,3501.7,3.02]
[1721205076865,2.85491,3502.8,3501.9,2.85558]
[1721205077078,2.85491,3502.8,3502.0,2.8555]
[1721205077222,2.85495,3502.7,3501.8,2.85561]
[1721205077573,2.85495,3502.7,3501.0,4.08563383]
[1721205077721,2.85535,3502.2,3501.3,2.85602]
[1721205078060,2.8556,3501.9,3501.1,2.85619]
[1721205078263,2.2509,3502.1,3501.3,2.85601]
[1721205078264,2.85548,3502.1,3501.3,2.85601]
[1721205078556,2.85497,3502.7,3501.7,2.85573]
[1721205078765,5.10573,3502.9,3502.0,2.8555]
[1721205079259,2.85494,3502.7,3502.0,2.8555]
[1721205079822,2.85494,3502.7,3501.8,2.85566]
[1721205080022,2.85503,3502.6,3501.8,2.85566]
[1721205080322,2.2509,3502.9,3501.0,3.29614844]
[1721205080323,2.85551,3502.0,3501.0,3.29614844]
[1721205080526,2.85569,3501.8,3501.0,3.15245844]
[1721205080767,2.85553,3502.0,3501.3,2.85605]
[1721205081065,2.85553,3502.0,3501.1,2.85618]
[1721205081218,2.8556,3501.9,3501.2,2.85613]
[1721205081418,2.8556,3501.9,3501.1,2.85618]
[1721205081628,2.8556,3501.9,3501.2,2.85614]
[1721205081831,2.85529,3502.3,3501.4,2.85597]
[1721205082072,3.0,3503.3,3501.3,2.85605]
[1721205082073,5.15112,3502.5,3501.5,2.85585]
[1721205082386,5.15566,3503.1,3501.9,2.85551]
[1721205082676,5.15566,3503.1,3501.6,0.05710255]
[1721205082677,0.005,3503.1,3502.9,2.85471]
[1721205082842,0.005,3503.1,3503.0,2.85469]
[1721205083040,0.005,3503.1,3503.0,8.72938]
[1721205083383,0.005,3503.1,3503.0,9.27938]
[1721205083545,0.005,3503.1,3503.0,8.72938]
[1721205083947,0.005,3503.1,3503.0,16.83407]
[1721205084144,0.2068856,3504.2,3504.0,2.85383]
[1721205084352,0.2068856,3504.2,3504.1,2.85379]
[1721205085233,0.2068856,3504.2,3504.1,8.72758]
[1721205085434,0.2068856,3504.2,3504.1,5.70758]
[1721205085658,0.2068856,3504.2,3504.1,2.85379]
[1721205085831,0.2068856,3504.2,3503.8,2.85403]
[1721205086049,0.2068856,3504.2,3503.5,2.85422]
[1721205086377,3.0606056,3504.2,3503.4,2.85433]
[1721205086580,3.0606056,3504.2,3503.3,2.85443]
[1721205086581,2.85389,3504.0,3503.3,2.85443]
[1721205086791,3.0606056,3504.2,3502.5,1.7]
[1721205086792,0.2068856,3504.2,3503.2,5.3752]
[1721205087075,0.2068856,3504.2,3503.5,2.85426]
[1721205087277,0.2068856,3504.2,3503.2,3.02]
[1721205087754,0.2068856,3504.2,3503.7,2.85411]
[1721205087954,0.2068856,3504.2,3503.5,2.85426]
[1721205088164,0.2068856,3504.2,3503.3,5.87439]
[1721205088462,0.2068856,3504.2,3503.2,2.85451]
[1721205088463,5.1248,3504.1,3503.2,2.85451]
[1721205088676,3.08953156,3504.1,3502.8,2.85483]
[1721205088856,2.85445,3503.3,3502.4,2.85517]
[1721205089177,2.85445,3503.3,3502.6,2.85501]
[1721205089333,2.271,3504.1,3503.5,3.02]
[1721205089539,0.2068856,3504.2,3504.0,5.87385]
[1721205089762,0.2068856,3504.2,3504.1,2.85379]
[1721205090084,0.2068856,3504.2,3504.1,8.72758]
[1721205090313,1.48731358,3506.2,3504.0,2.85385]
[1721205090314,1.34489626,3506.6,3504.5,3.02]
[1721205090437,1.34489626,3506.6,3505.0,11.57918]
[1721205090438,0.44749151,3506.6,3505.0,11.57918]
[1721205090771,2.3934,3506.9,3505.0,8.72612]
[1721205090772,2.85199,3506.4,3505.0,8.72612]
[1721205090985,2.85199,3506.4,3505.0,9.27612]
[1721205091363,2.85217,3506.1,3505.0,8.72612]
[1721205091736,2.85217,3506.1,3504.4,1.7]
[1721205091737,2.3934,3505.6,3504.4,1.7]
[1721205091941,2.85266,3505.5,3504.6,2.85334]
[1721205092142,2.85266,3505.5,3504.3,2.85363]
[1721205092143,2.85274,3505.4,3504.3,2.85363]
[1721205092352,2.85288,3505.3,3504.3,2.85363]
[1721205092565,2.85332,3504.7,3503.6,2.8542]
[1721205092783,2.85332,3504.7,3503.7,3.02]
[1721205092951,2.85332,3504.7,3503.9,2.8539]
[1721205093157,0.290788,3505.1,3504.0,2.85387]
[1721205093158,0.005,3505.1,3504.0,2.85387]
[1721205093342,0.005,3505.1,3503.4,2.85]
[1721205093343,0.005,3505.1,3504.4,3.02]
[1721205093543,0.005,3505.1,3504.6,2.85332]
[1721205093785,0.005,3505.1,3504.3,2.85356]
[1721205093786,0.005,3505.1,3505.0,2.85306]
[1721205094140,0.005,3505.1,3504.5,2.85346]
[1721205094341,0.005,3505.1,3504.0,2.85382]
[1721205094342,0.005,3505.1,3504.9,2.85308]
[1721205094790,0.005,3505.1,3504.7,2.85324]
[1721205094955,0.005,3505.1,3504.3,2.85362]
[1721205095159,0.005,3505.1,3504.1,2.85378]